[Event "*** Titled Tuesday 3|2 Blitz"]
[Site "Chess.com"]
[Date "2017.05.02"]
[Round "9"]
[White "heartofatiger"]
[Black "Alexander_Donchenko"]
[Result "0-1"]
[WhiteElo "1919"]
[BlackElo "2517"]
[TimeControl "180+2"]
[EndTime "14:57:00 PDT"]
[Termination "Alexander_Donchenko won by resignation"]

1. d4 {[%clk 0:03:02]} 1... Nf6 {[%clk 0:02:56.1]} 2. Nf3 {[%clk 0:03:03]} 2...
e6 {[%clk 0:02:54.7]} 3. c3 {[%clk 0:03:04.1]} 3... b6 {[%clk 0:02:53.1]} 4. g3
{[%clk 0:03:04.3]} 4... Bb7 {[%clk 0:02:54.4]} 5. Bg2 {[%clk 0:03:06]} 5... Be7
{[%clk 0:02:54.4]} 6. O-O {[%clk 0:03:07.5]} 6... O-O {[%clk 0:02:55.8]} 7. Re1
{[%clk 0:03:08.7]} 7... c5 {[%clk 0:02:56.2]} 8. Nbd2 {[%clk 0:03:02.9]} 8...
cxd4 {[%clk 0:02:57.1]} 9. cxd4 {[%clk 0:03:04]} 9... d5 {[%clk 0:02:58.2]} 10.
Ne5 {[%clk 0:03:03.8]} 10... Nc6 {[%clk 0:02:58.7]} 11. Nxc6 {[%clk 0:03:04.8]}
11... Bxc6 {[%clk 0:03:00.6]} 12. Nf3 {[%clk 0:03:04.5]} 12... Bb4 {[%clk
0:02:43.4]} 13. Bd2 {[%clk 0:03:04.5]} 13... Qe7 {[%clk 0:02:43.3]} 14. Bxb4
{[%clk 0:03:05]} 14... Qxb4 {[%clk 0:02:43.9]} 15. Qd2 {[%clk 0:03:06.4]} 15...
Qxd2 {[%clk 0:02:43.2]} 16. Nxd2 {[%clk 0:03:07.1]} 16... Rfc8 {[%clk
0:02:44.6]} 17. Rec1 {[%clk 0:03:07.9]} 17... Kf8 {[%clk 0:02:43.9]} 18. e3
{[%clk 0:03:08.2]} 18... Bb5 {[%clk 0:02:43.1]} 19. Bf3 {[%clk 0:02:59.1]} 19...
Ke7 {[%clk 0:02:42.7]} 20. h4 {[%clk 0:02:59.4]} 20... h6 {[%clk 0:02:43.1]} 21.
Kg2 {[%clk 0:02:59.1]} 21... Bd3 {[%clk 0:02:43.3]} 22. a3 {[%clk 0:02:58.2]}
22... Ne8 {[%clk 0:02:44.2]} 23. g4 {[%clk 0:02:51.5]} 23... Nd6 {[%clk
0:02:41]} 24. Kg3 {[%clk 0:02:52.4]} 24... g5 {[%clk 0:02:38.2]} 25. hxg5 {[%clk
0:02:44.9]} 25... hxg5 {[%clk 0:02:40.1]} 26. Bg2 {[%clk 0:02:45.7]} 26... a5
{[%clk 0:02:33.2]} 27. f3 {[%clk 0:02:44.1]} 27... a4 {[%clk 0:02:32.3]} 28. Bf1
{[%clk 0:02:44.9]} 28... Bxf1 {[%clk 0:02:32.9]} 29. Nxf1 {[%clk 0:02:44.2]}
29... Nc4 {[%clk 0:02:32.1]} 30. Rc2 {[%clk 0:02:37]} 30... Ra5 {[%clk
0:02:28.5]} 31. Nd2 {[%clk 0:02:26.8]} 31... Rb5 {[%clk 0:02:29]} 32. Nxc4
{[%clk 0:02:25.1]} 32... Rxc4 {[%clk 0:02:30.9]} 33. Rac1 {[%clk 0:02:25.2]}
33... Rxb2 {[%clk 0:02:27.8]} 34. Rxc4 {[%clk 0:02:09.5]} 34... dxc4 {[%clk
0:02:29.7]} 35. Rxc4 {[%clk 0:02:10.5]} 35... b5 {[%clk 0:02:31.3]} 36. Rc7+
{[%clk 0:02:09.1]} 36... Kd6 {[%clk 0:02:29.6]} 37. Rxf7 {[%clk 0:01:53.7]}
37... Rb3 {[%clk 0:02:30.1]} 38. Rb7 {[%clk 0:01:53.9]} 38... Kc6 {[%clk
0:02:30.7]} 39. Rb8 {[%clk 0:01:54.7]} 39... Rxa3 {[%clk 0:02:31.1]} 40. e4
{[%clk 0:01:47.9]} 40... Rd3 {[%clk 0:02:30.5]} 41. Re8 {[%clk 0:01:42.1]} 41...
Kd7 {[%clk 0:02:17.2]} 42. Rb8 {[%clk 0:01:40.7]} 42... Kc6 {[%clk 0:02:17.2]}
43. Re8 {[%clk 0:01:38.8]} 43... Rxd4 {[%clk 0:02:17.9]} 44. Rxe6+ {[%clk
0:01:39.6]} 44... Rd6 {[%clk 0:02:19.4]} 45. Re5 {[%clk 0:01:39.8]} 45... a3
{[%clk 0:02:19.2]} 46. Re8 {[%clk 0:01:37.5]} 46... Kb7 {[%clk 0:02:16.6]} 47.
Re7+ {[%clk 0:01:33.7]} 47... Kb6 {[%clk 0:02:17.8]} 48. Re8 {[%clk 0:01:35]}
48... Ka5 {[%clk 0:02:19]} 49. e5 {[%clk 0:01:35.3]} 49... Ra6 {[%clk
0:02:19.8]} 50. Rd8 {[%clk 0:01:29.7]} 50... a2 {[%clk 0:02:21]} 51. Rd1 {[%clk
0:01:27.7]} 51... b4 {[%clk 0:02:22.3]} 52. f4 {[%clk 0:01:29.3]} 52... gxf4+
{[%clk 0:02:23.1]} 53. Kxf4 {[%clk 0:01:30.3]} 53... b3 {[%clk 0:02:24.7]} 54.
Kf5 {[%clk 0:01:31.3]} 54... b2 {[%clk 0:02:25.7]} 0-1

[Event "*** Titled Tuesday 3|2 Blitz"]
[Site "Chess.com"]
[Date "2017.05.02"]
[Round "9"]
[White "matiss90"]
[Black "kleinebeer98"]
[Result "0-1"]
[WhiteElo "2365"]
[BlackElo "2467"]
[TimeControl "180+2"]
[EndTime "14:57:06 PDT"]
[Termination "kleinebeer98 won by checkmate"]

1. e4 {[%clk 0:03:02]} 1... e5 {[%clk 0:03:01.1]} 2. Nf3 {[%clk 0:03:02.6]} 2...
Nc6 {[%clk 0:03:02.7]} 3. d4 {[%clk 0:03:04.1]} 3... exd4 {[%clk 0:03:03.9]} 4.
Nxd4 {[%clk 0:03:05.3]} 4... Qf6 {[%clk 0:03:00.8]} 5. Nb5 {[%clk 0:02:39.2]}
5... Bc5 {[%clk 0:03:00.9]} 6. Qd2 {[%clk 0:02:34.9]} 6... Bb6 {[%clk
0:02:58.5]} 7. N1c3 {[%clk 0:02:35.3]} 7... Nge7 {[%clk 0:02:57.9]} 8. Qf4
{[%clk 0:02:30.7]} 8... Qxf4 {[%clk 0:02:41.2]} 9. Bxf4 {[%clk 0:02:30.4]} 9...
d6 {[%clk 0:02:43.1]} 10. Nd5 {[%clk 0:01:55.8]} 10... Nxd5 {[%clk 0:02:37.9]}
11. exd5 {[%clk 0:01:56.2]} 11... Nb4 {[%clk 0:02:39.8]} 12. O-O-O {[%clk
0:01:56.7]} 12... Nxa2+ {[%clk 0:02:27.6]} 13. Kb1 {[%clk 0:01:56.9]} 13... Nb4
{[%clk 0:02:28.3]} 14. Nxd6+ {[%clk 0:00:41.5]} 14... cxd6 {[%clk 0:02:27.2]}
15. Bxd6 {[%clk 0:00:41.9]} 15... a5 {[%clk 0:01:57.5]} 16. Bb5+ {[%clk
0:00:27.2]} 16... Bd7 {[%clk 0:01:54.3]} 17. Rhe1+ {[%clk 0:00:24.5]} 17... Kd8
{[%clk 0:01:52.8]} 18. Be7+ {[%clk 0:00:22.1]} 18... Kc8 {[%clk 0:01:51.7]} 19.
Bxd7+ {[%clk 0:00:14.3]} 19... Kxd7 {[%clk 0:01:52.3]} 20. Bxb4 {[%clk
0:00:14.2]} 20... axb4 {[%clk 0:01:53.5]} 21. Re4 {[%clk 0:00:14.2]} 21... Bc5
{[%clk 0:01:50.1]} 22. d6 {[%clk 0:00:14.1]} 22... Bxd6 {[%clk 0:01:50.5]} 23.
Rxb4 {[%clk 0:00:13]} 23... Kc6 {[%clk 0:01:39.3]} 24. Rc4+ {[%clk 0:00:13.1]}
24... Kb5 {[%clk 0:01:40.5]} 25. b3 {[%clk 0:00:13.7]} 25... Rhd8 {[%clk
0:01:37.9]} 26. Rcd4 {[%clk 0:00:12.3]} 26... Be5 {[%clk 0:01:38.1]} 27. Rd5+
{[%clk 0:00:12.8]} 27... Kc6 {[%clk 0:01:39.3]} 28. Rxd8 {[%clk 0:00:13]} 28...
Ra1# {[%clk 0:01:39.9]} 0-1

[Event "*** Titled Tuesday 3|2 Blitz"]
[Site "Chess.com"]
[Date "2017.05.02"]
[Round "9"]
[White "politeplayer"]
[Black "Enzy63"]
[Result "0-1"]
[WhiteElo "2049"]
[BlackElo "2047"]
[TimeControl "180+2"]
[EndTime "14:57:46 PDT"]
[Termination "Enzy63 won by resignation"]

1. e4 {[%clk 0:02:57.5]} 1... c5 {[%clk 0:02:58.4]} 2. Nf3 {[%clk 0:02:58.8]}
2... d6 {[%clk 0:02:59.5]} 3. d4 {[%clk 0:03:00.3]} 3... cxd4 {[%clk 0:03:00.6]}
4. Nxd4 {[%clk 0:03:01.9]} 4... Nf6 {[%clk 0:03:01.7]} 5. Nc3 {[%clk 0:03:03.5]}
5... g6 {[%clk 0:03:02.9]} 6. Be3 {[%clk 0:03:04.4]} 6... Bg7 {[%clk 0:03:03.4]}
7. f3 {[%clk 0:03:06]} 7... Nc6 {[%clk 0:03:04.8]} 8. Qd2 {[%clk 0:03:07.2]}
8... O-O {[%clk 0:03:06.1]} 9. Bc4 {[%clk 0:03:08.7]} 9... Bd7 {[%clk
0:03:05.1]} 10. O-O-O {[%clk 0:03:08.5]} 10... Rb8 {[%clk 0:02:47.6]} 11. h4
{[%clk 0:03:07.1]} 11... h5 {[%clk 0:02:36.9]} 12. Nxc6 {[%clk 0:03:04.2]} 12...
bxc6 {[%clk 0:02:36.5]} 13. Bh6 {[%clk 0:03:05.7]} 13... Bxh6 {[%clk 0:02:09.4]}
14. Qxh6 {[%clk 0:03:04]} 14... Qb6 {[%clk 0:02:11]} 15. Qxg6+ {[%clk
0:03:02.9]} 15... Kh8 {[%clk 0:02:11.2]} 16. Qh6+ {[%clk 0:03:02.4]} 16... Kg8
{[%clk 0:02:12.2]} 17. Bb3 {[%clk 0:02:59.6]} 17... Be6 {[%clk 0:01:24.2]} 18.
Rh3 {[%clk 0:02:59.2]} 18... Bxh3 {[%clk 0:01:21.8]} 19. gxh3 {[%clk 0:02:58.2]}
19... Nh7 {[%clk 0:00:50.5]} 20. e5 {[%clk 0:02:34.8]} 20... d5 {[%clk
0:00:42.8]} 21. Ne2 {[%clk 0:02:27.9]} 21... Kh8 {[%clk 0:00:41.2]} 22. c3
{[%clk 0:02:22.5]} 22... Rg8 {[%clk 0:00:39.6]} 23. Bc2 {[%clk 0:02:21.7]} 23...
Rg7 {[%clk 0:00:36.8]} 24. Qxh5 {[%clk 0:02:16.6]} 24... Qe3+ {[%clk 0:00:34.9]}
25. Rd2 {[%clk 0:02:16.1]} 25... Rbg8 {[%clk 0:00:32.8]} 26. f4 {[%clk 0:02:01]}
26... e6 {[%clk 0:00:26.8]} 27. Nd4 {[%clk 0:01:53.5]} 27... Rg1+ {[%clk
0:00:23.6]} 28. Bd1 {[%clk 0:01:55]} 28... c5 {[%clk 0:00:19.9]} 29. Nf3 {[%clk
0:01:52.1]} 29... R1g2 {[%clk 0:00:18.5]} 30. Bc2 {[%clk 0:01:44.3]} 30... R8g7
{[%clk 0:00:18.6]} 31. Qh6 {[%clk 0:01:34.2]} 31... Rxd2 {[%clk 0:00:17.6]} 32.
Nxd2 {[%clk 0:01:29.1]} 32... Rg1+ {[%clk 0:00:18.2]} 33. Bd1 {[%clk 0:01:29.8]}
33... Qe2 {[%clk 0:00:18.7]} 34. Qxh7+ {[%clk 0:01:30.2]} 34... Kxh7 {[%clk
0:00:18.3]} 0-1

[Event "*** Titled Tuesday 3|2 Blitz"]
[Site "Chess.com"]
[Date "2017.05.02"]
[Round "9"]
[White "GMBenjaminBok"]
[Black "Konavets"]
[Result "0-1"]
[WhiteElo "2673"]
[BlackElo "2695"]
[TimeControl "180+2"]
[EndTime "14:58:02 PDT"]
[Termination "Konavets won by resignation"]

1. e4 {[%clk 0:03:02]} 1... c6 {[%clk 0:02:57.2]} 2. d4 {[%clk 0:03:02.4]} 2...
d5 {[%clk 0:02:58.8]} 3. e5 {[%clk 0:03:04]} 3... Bf5 {[%clk 0:02:59.8]} 4. Nf3
{[%clk 0:03:05.5]} 4... e6 {[%clk 0:03:00.9]} 5. Be2 {[%clk 0:03:07]} 5... Ne7
{[%clk 0:03:01]} 6. O-O {[%clk 0:03:08]} 6... h6 {[%clk 0:03:02.7]} 7. Nbd2
{[%clk 0:03:05.5]} 7... Nd7 {[%clk 0:03:04.1]} 8. c3 {[%clk 0:03:05.4]} 8... g5
{[%clk 0:03:05.4]} 9. b4 {[%clk 0:03:05.7]} 9... Qc7 {[%clk 0:02:58.1]} 10. Nb3
{[%clk 0:03:05.3]} 10... Ng6 {[%clk 0:02:57.1]} 11. Bd3 {[%clk 0:03:02.3]} 11...
Ne7 {[%clk 0:02:44.1]} 12. Ne1 {[%clk 0:02:59]} 12... Bg7 {[%clk 0:02:43.5]} 13.
f4 {[%clk 0:02:56.8]} 13... gxf4 {[%clk 0:02:44.6]} 14. Bxf4 {[%clk 0:02:57.2]}
14... O-O-O {[%clk 0:02:41]} 15. a4 {[%clk 0:02:53.6]} 15... Kb8 {[%clk
0:02:35.7]} 16. Nc2 {[%clk 0:02:41.7]} 16... Rdg8 {[%clk 0:01:53.8]} 17. Ne3
{[%clk 0:02:41.7]} 17... Bxd3 {[%clk 0:01:52.1]} 18. Qxd3 {[%clk 0:02:43.6]}
18... Ng6 {[%clk 0:01:53.4]} 19. Bg3 {[%clk 0:02:42]} 19... h5 {[%clk
0:01:54.9]} 20. Rxf7 {[%clk 0:02:11.1]} 20... Bh6 {[%clk 0:01:55.2]} 21. Raf1
{[%clk 0:02:05.1]} 21... h4 {[%clk 0:01:51.3]} 22. Be1 {[%clk 0:02:03.4]} 22...
Ngxe5 {[%clk 0:01:48.7]} 23. dxe5 {[%clk 0:01:58.7]} 23... Nxe5 {[%clk
0:01:50.6]} 24. Rxc7 {[%clk 0:01:39.9]} 24... Nxd3 {[%clk 0:01:50.9]} 25. Nxd5
{[%clk 0:01:33]} 25... cxd5 {[%clk 0:01:49.3]} 26. Rcf7 {[%clk 0:01:27.9]} 26...
Ne5 {[%clk 0:01:20.7]} 27. Re7 {[%clk 0:01:22.3]} 27... Be3+ {[%clk 0:01:20.4]}
28. Kh1 {[%clk 0:01:22.3]} 28... Rf8 {[%clk 0:01:21.7]} 29. Rg1 {[%clk 0:00:55]}
29... Bxg1 {[%clk 0:01:21.2]} 30. Kxg1 {[%clk 0:00:56.9]} 30... Rhg8 {[%clk
0:01:20.9]} 31. Na5 {[%clk 0:00:44.2]} 31... b6 {[%clk 0:00:52.7]} 32. Rxe6
{[%clk 0:00:36.8]} 32... Nf3+ {[%clk 0:00:51.8]} 33. Kh1 {[%clk 0:00:37.2]}
33... Nxe1 {[%clk 0:00:51.2]} 34. Nc6+ {[%clk 0:00:35.9]} 34... Kc7 {[%clk
0:00:52.1]} 35. Rxe1 {[%clk 0:00:36]} 35... Kxc6 {[%clk 0:00:53.4]} 0-1

[Event "*** Titled Tuesday 3|2 Blitz"]
[Site "Chess.com"]
[Date "2017.05.02"]
[Round "9"]
[White "DryCounty"]
[Black "chessking2151"]
[Result "1-0"]
[WhiteElo "2464"]
[BlackElo "2345"]
[TimeControl "180+2"]
[EndTime "14:58:10 PDT"]
[Termination "DryCounty won by resignation"]

1. e4 {[%clk 0:03:02]} 1... c5 {[%clk 0:02:59.2]} 2. Nf3 {[%clk 0:03:02.5]} 2...
d6 {[%clk 0:02:59]} 3. d4 {[%clk 0:03:03.4]} 3... cxd4 {[%clk 0:02:59.2]} 4.
Nxd4 {[%clk 0:03:05.3]} 4... Nf6 {[%clk 0:02:59.9]} 5. Nc3 {[%clk 0:03:06.2]}
5... a6 {[%clk 0:02:58.2]} 6. Be2 {[%clk 0:03:05.4]} 6... Nbd7 {[%clk
0:02:45.1]} 7. O-O {[%clk 0:03:05.2]} 7... e6 {[%clk 0:02:38]} 8. a4 {[%clk
0:02:57.8]} 8... b6 {[%clk 0:02:37]} 9. f4 {[%clk 0:02:32.6]} 9... Bb7 {[%clk
0:02:36.1]} 10. Bf3 {[%clk 0:02:31.8]} 10... Qc7 {[%clk 0:02:21]} 11. g4 {[%clk
0:02:29]} 11... e5 {[%clk 0:02:09.8]} 12. Nf5 {[%clk 0:02:27.6]} 12... exf4
{[%clk 0:01:57.7]} 13. g5 {[%clk 0:02:28.1]} 13... g6 {[%clk 0:01:52.5]} 14.
gxf6 {[%clk 0:02:15]} 14... gxf5 {[%clk 0:01:52.1]} 15. Nd5 {[%clk 0:02:12.4]}
15... Qc5+ {[%clk 0:01:50.1]} 16. Kh1 {[%clk 0:02:12.8]} 16... Ne5 {[%clk
0:01:37.5]} 17. b4 {[%clk 0:02:04.8]} 17... Qc6 {[%clk 0:01:35.1]} 18. Bxf4
{[%clk 0:02:03.2]} 18... O-O-O {[%clk 0:01:05.6]} 19. b5 {[%clk 0:02:02.3]}
19... axb5 {[%clk 0:00:55.7]} 20. axb5 {[%clk 0:02:03.2]} 20... Qxb5 {[%clk
0:00:55.9]} 21. Rb1 {[%clk 0:02:03.1]} 21... Qc6 {[%clk 0:00:48.4]} 22. Rxb6
{[%clk 0:01:59.4]} 22... Qc4 {[%clk 0:00:48.7]} 23. Bxe5 {[%clk 0:01:48.9]}
23... dxe5 {[%clk 0:00:47.5]} 24. Rxb7 {[%clk 0:01:38.3]} 24... Rxd5 {[%clk
0:00:40.7]} 25. Qb1 {[%clk 0:01:24.7]} 25... Rc5 {[%clk 0:00:20.8]} 26. Rb8+
{[%clk 0:01:22.6]} 26... Kd7 {[%clk 0:00:21.5]} 27. Rd1+ {[%clk 0:01:23]} 27...
Bd6 {[%clk 0:00:22.2]} 28. Rb7+ {[%clk 0:01:14.5]} 28... Rc7 {[%clk 0:00:20.7]}
29. Qb6 {[%clk 0:00:56.6]} 29... Qc6 {[%clk 0:00:20.2]} 30. Qxc6+ {[%clk
0:00:41.9]} 30... Kxc6 {[%clk 0:00:21.2]} 31. exf5+ {[%clk 0:00:42.7]} 31... Kd7
{[%clk 0:00:22.6]} 32. Rb6 {[%clk 0:00:42.2]} 32... Rxc2 {[%clk 0:00:23.6]} 33.
Rbxd6+ {[%clk 0:00:43]} 33... Kc7 {[%clk 0:00:25.2]} 34. Rd7+ {[%clk 0:00:43.9]}
34... Kb6 {[%clk 0:00:26.8]} 35. Rb7+ {[%clk 0:00:44.1]} 1-0

[Event "*** Titled Tuesday 3|2 Blitz"]
[Site "Chess.com"]
[Date "2017.05.02"]
[Round "9"]
[White "iturrizaga"]
[Black "platy3"]
[Result "0-1"]
[WhiteElo "2663"]
[BlackElo "2648"]
[TimeControl "180+2"]
[EndTime "14:58:28 PDT"]
[Termination "platy3 won by resignation"]

1. Nf3 {[%clk 0:03:02]} 1... Nf6 {[%clk 0:03:00.2]} 2. c4 {[%clk 0:03:03.9]}
2... e6 {[%clk 0:02:59.4]} 3. b3 {[%clk 0:03:05.4]} 3... d5 {[%clk 0:02:58.4]}
4. Bb2 {[%clk 0:03:07.3]} 4... Be7 {[%clk 0:02:58.4]} 5. g3 {[%clk 0:03:08.9]}
5... O-O {[%clk 0:02:56.9]} 6. Bg2 {[%clk 0:03:10.2]} 6... c5 {[%clk 0:02:58.4]}
7. O-O {[%clk 0:03:11.8]} 7... d4 {[%clk 0:02:59.6]} 8. e3 {[%clk 0:03:13]} 8...
Nc6 {[%clk 0:03:00.9]} 9. exd4 {[%clk 0:03:14.4]} 9... cxd4 {[%clk 0:03:02.8]}
10. Na3 {[%clk 0:03:15.7]} 10... Nd7 {[%clk 0:02:56]} 11. d3 {[%clk 0:03:15.8]}
11... e5 {[%clk 0:02:55]} 12. Nc2 {[%clk 0:03:16.4]} 12... a5 {[%clk 0:02:52.7]}
13. Re1 {[%clk 0:03:16.5]} 13... Re8 {[%clk 0:02:48.2]} 14. Nd2 {[%clk
0:03:11.5]} 14... Nc5 {[%clk 0:02:41]} 15. Ne4 {[%clk 0:03:11.7]} 15... Na6
{[%clk 0:02:37.5]} 16. g4 {[%clk 0:02:35.9]} 16... Bf8 {[%clk 0:02:34.2]} 17. h3
{[%clk 0:02:34.2]} 17... Qh4 {[%clk 0:02:24]} 18. Bc1 {[%clk 0:02:33.5]} 18...
h6 {[%clk 0:02:20.8]} 19. f4 {[%clk 0:02:27.5]} 19... f5 {[%clk 0:02:16.2]} 20.
gxf5 {[%clk 0:02:23.8]} 20... Bxf5 {[%clk 0:02:16.7]} 21. Rf1 {[%clk 0:01:57.7]}
21... Nc5 {[%clk 0:01:57]} 22. Nxc5 {[%clk 0:01:44.1]} 22... Bxc5 {[%clk
0:01:58.9]} 23. Qe1 {[%clk 0:01:27.4]} 23... Qh5 {[%clk 0:01:40.7]} 24. Qg3
{[%clk 0:01:20]} 24... e4 {[%clk 0:01:33.3]} 25. Ne1 {[%clk 0:01:03.3]} 25...
Nb4 {[%clk 0:01:24.5]} 26. Kh2 {[%clk 0:00:55.8]} 26... Nxd3 {[%clk 0:01:17.9]}
27. Nxd3 {[%clk 0:00:56.2]} 27... exd3 {[%clk 0:01:18.9]} 28. Bf3 {[%clk
0:00:56.1]} 28... Re2+ {[%clk 0:01:16]} 29. Bxe2 {[%clk 0:00:55.8]} 29... dxe2
{[%clk 0:01:12.2]} 30. Rg1 {[%clk 0:00:56.8]} 30... Qg6 {[%clk 0:01:04.6]} 31.
Qxg6 {[%clk 0:00:54.6]} 31... Bxg6 {[%clk 0:01:05.5]} 32. Bd2 {[%clk 0:00:55.6]}
32... Bf5 {[%clk 0:01:04]} 33. Rg3 {[%clk 0:00:47.6]} 33... Bb4 {[%clk
0:01:00.9]} 34. Bxb4 {[%clk 0:00:32.2]} 34... axb4 {[%clk 0:01:02.8]} 35. Kg2
{[%clk 0:00:34.1]} 35... Rxa2 {[%clk 0:00:58.6]} 36. Re1 {[%clk 0:00:31.5]}
36... d3 {[%clk 0:00:59.4]} 0-1

[Event "*** Titled Tuesday 3|2 Blitz"]
[Site "Chess.com"]
[Date "2017.05.02"]
[Round "9"]
[White "FearlessKing64"]
[Black "IMVoja"]
[Result "0-1"]
[WhiteElo "2164"]
[BlackElo "2333"]
[TimeControl "180+2"]
[EndTime "14:58:32 PDT"]
[Termination "IMVoja won by resignation"]

1. e4 {[%clk 0:03:02]} 1... c6 {[%clk 0:01:29.5]} 2. d4 {[%clk 0:03:01.5]} 2...
d5 {[%clk 0:01:29.6]} 3. exd5 {[%clk 0:03:01.3]} 3... cxd5 {[%clk 0:01:30.4]} 4.
c4 {[%clk 0:03:02.8]} 4... Nf6 {[%clk 0:01:31.7]} 5. Nc3 {[%clk 0:03:02.7]} 5...
Nc6 {[%clk 0:01:33.2]} 6. Nf3 {[%clk 0:03:03.4]} 6... Bg4 {[%clk 0:01:33.7]} 7.
cxd5 {[%clk 0:03:04.3]} 7... Nxd5 {[%clk 0:01:34.5]} 8. Qb3 {[%clk 0:03:06]}
8... Bxf3 {[%clk 0:01:35.5]} 9. gxf3 {[%clk 0:03:07.9]} 9... Nb6 {[%clk
0:01:36.2]} 10. Be3 {[%clk 0:03:03]} 10... e6 {[%clk 0:01:37]} 11. O-O-O {[%clk
0:03:03.9]} 11... Be7 {[%clk 0:01:35.4]} 12. d5 {[%clk 0:03:04.6]} 12... Nxd5
{[%clk 0:01:35.9]} 13. Nxd5 {[%clk 0:03:06.5]} 13... exd5 {[%clk 0:01:37.1]} 14.
Rxd5 {[%clk 0:03:08.4]} 14... Qc7 {[%clk 0:01:37.7]} 15. Kb1 {[%clk 0:03:09.9]}
15... O-O {[%clk 0:01:38.3]} 16. h4 {[%clk 0:02:56.5]} 16... Bf6 {[%clk
0:01:32.9]} 17. Be2 {[%clk 0:02:53]} 17... Rac8 {[%clk 0:01:28.5]} 18. Rg1
{[%clk 0:02:48.1]} 18... Rfd8 {[%clk 0:01:24.5]} 19. Rf5 {[%clk 0:02:39.3]}
19... Qe7 {[%clk 0:01:10.3]} 20. a3 {[%clk 0:02:13.8]} 20... Nd4 {[%clk
0:01:06.3]} 21. Bxd4 {[%clk 0:02:10.1]} 21... Rxd4 {[%clk 0:01:06.7]} 22. Bd3
{[%clk 0:01:35]} 22... Rcd8 {[%clk 0:01:02.7]} 23. Bc2 {[%clk 0:01:33.3]} 23...
R4d6 {[%clk 0:00:58.4]} 24. Rg4 {[%clk 0:01:21.5]} 24... Rb6 {[%clk 0:00:57.1]}
25. Rb5 {[%clk 0:01:13.2]} 25... Rdd6 {[%clk 0:00:56.7]} 26. Rc4 {[%clk
0:01:09.8]} 26... g6 {[%clk 0:00:56.1]} 27. h5 {[%clk 0:01:08.6]} 27... Rxb5
{[%clk 0:00:56.4]} 28. Qxb5 {[%clk 0:01:08.9]} 28... Rb6 {[%clk 0:00:57.2]} 29.
Rc8+ {[%clk 0:00:48.8]} 29... Kg7 {[%clk 0:00:57.5]} 30. h6+ {[%clk 0:00:50.2]}
30... Kxh6 {[%clk 0:00:57.8]} 31. Qf1 {[%clk 0:00:48]} 31... Rxb2+ {[%clk
0:00:57]} 32. Kc1 {[%clk 0:00:49.1]} 32... Qxa3 {[%clk 0:00:50.6]} 33. Qd3
{[%clk 0:00:25.2]} 33... Rb1+ {[%clk 0:00:38.8]} 34. Kd2 {[%clk 0:00:21.3]}
34... Qc1+ {[%clk 0:00:38.3]} 0-1

[Event "*** Titled Tuesday 3|2 Blitz"]
[Site "Chess.com"]
[Date "2017.05.02"]
[Round "9"]
[White "Michelangelo"]
[Black "Alexander_Moskalenko"]
[Result "1/2-1/2"]
[WhiteElo "2657"]
[BlackElo "2689"]
[TimeControl "180+2"]
[EndTime "14:58:41 PDT"]
[Termination "Game drawn by agreement"]

1. d4 {[%clk 0:03:02]} 1... d5 {[%clk 0:03:00.9]} 2. Nf3 {[%clk 0:03:01.6]} 2...
e6 {[%clk 0:03:02.5]} 3. c4 {[%clk 0:03:00.5]} 3... Nf6 {[%clk 0:03:04.4]} 4.
Nc3 {[%clk 0:03:00.9]} 4... Bb4 {[%clk 0:03:00.5]} 5. e3 {[%clk 0:02:57.2]} 5...
O-O {[%clk 0:02:58]} 6. Bd3 {[%clk 0:02:58.1]} 6... c5 {[%clk 0:02:59.5]} 7. O-O
{[%clk 0:02:46.7]} 7... Nc6 {[%clk 0:02:59.9]} 8. a3 {[%clk 0:02:40.7]} 8...
Bxc3 {[%clk 0:03:01.1]} 9. bxc3 {[%clk 0:02:42.6]} 9... dxc4 {[%clk 0:03:03]}
10. Bxc4 {[%clk 0:02:44.1]} 10... Qc7 {[%clk 0:03:04.7]} 11. Bb2 {[%clk
0:02:43.7]} 11... e5 {[%clk 0:03:04.1]} 12. h3 {[%clk 0:02:42.9]} 12... Bf5
{[%clk 0:03:05.1]} 13. Bb5 {[%clk 0:02:37]} 13... Rad8 {[%clk 0:02:55.8]} 14.
Bxc6 {[%clk 0:02:25.2]} 14... exd4 {[%clk 0:02:30.3]} 15. cxd4 {[%clk
0:02:11.6]} 15... Qxc6 {[%clk 0:02:31.5]} 16. Rc1 {[%clk 0:02:12.6]} 16... b6
{[%clk 0:02:27.4]} 17. Ne5 {[%clk 0:02:05.9]} 17... Qb5 {[%clk 0:02:18.6]} 18.
Ba1 {[%clk 0:01:59.8]} 18... Nd7 {[%clk 0:02:14.6]} 19. Qf3 {[%clk 0:01:40.1]}
19... Bd3 {[%clk 0:02:01.8]} 20. Nxd3 {[%clk 0:01:07.2]} 20... Qxd3 {[%clk
0:02:02.8]} 21. a4 {[%clk 0:01:05.1]} 21... Rfe8 {[%clk 0:01:59.7]} 22. Rfd1
{[%clk 0:01:04]} 22... Qb3 {[%clk 0:01:55.6]} 23. Qg3 {[%clk 0:00:32.5]} 23...
Ne5 {[%clk 0:01:26]} 24. a5 {[%clk 0:00:19]} 24... bxa5 {[%clk 0:01:15.9]} 25.
d5 {[%clk 0:00:16.3]} 25... Rxd5 {[%clk 0:01:11.7]} 26. Rxd5 {[%clk 0:00:16.1]}
26... Qxd5 {[%clk 0:01:13.6]} 27. Bxe5 {[%clk 0:00:13.8]} 27... Qxe5 {[%clk
0:01:09.9]} 28. Qg4 {[%clk 0:00:15.2]} 28... g6 {[%clk 0:01:06.5]} 29. Qc4
{[%clk 0:00:16.2]} 29... Rc8 {[%clk 0:01:07.1]} 30. Qa6 {[%clk 0:00:17.2]} 30...
Qc7 {[%clk 0:01:05.6]} 31. Qc4 {[%clk 0:00:15.3]} 31... Rb8 {[%clk 0:01:02.9]}
32. Qxc5 {[%clk 0:00:12.3]} 32... Qxc5 {[%clk 0:00:36.5]} 33. Rxc5 {[%clk
0:00:13]} 33... Rb1+ {[%clk 0:00:38.1]} 34. Kh2 {[%clk 0:00:13.9]} 34... Ra1
{[%clk 0:00:38.6]} 35. Rc7 {[%clk 0:00:14.4]} 35... a4 {[%clk 0:00:40.2]} 36.
Rxa7 {[%clk 0:00:15.7]} 36... h5 {[%clk 0:00:41.2]} 37. g4 {[%clk 0:00:15.6]}
37... hxg4 {[%clk 0:00:41.9]} 38. hxg4 {[%clk 0:00:17.5]} 1/2-1/2